bitfinex/quotes_ETHUSD_20230830
["timestamp","ask_amount","ask_price","bid_price","bid_amount"]
[1693422725844,1.923,1705.4,1705.3,0.31688875]
[1693422726186,12.54484263,1705.4,1704.9,6.47635271]
[1693422726390,8.73766065,1705.3,1705.0,1.01944565]
[1693422726985,8.73766065,1705.3,1705.0,6.88444565]
[1693422727156,8.73766065,1705.3,1704.9,12.34147271]
[1693422727355,8.73766065,1705.3,1705.0,1.0194522]
[1693422727578,12.75685008,1705.3,1705.0,1.0194522]
[1693422727800,12.75685008,1705.3,1704.9,5.86524]
[1693422727961,20.06403008,1705.3,1704.8,6.47660271]
[1693422728173,25.92821008,1705.3,1704.9,1.01948351]
[1693422728512,20.92152198,1705.2,1704.9,1.01948351]
[1693422728667,20.92152198,1705.2,1704.8,0.61096271]
[1693422728668,1.443,1705.0,1704.6,9.87422169]
[1693422729010,8.73868065,1705.0,1704.7,1.01960987]
[1693422729405,8.73868065,1705.0,1704.7,1.26141398]
[1693422729610,8.73868065,1705.0,1704.7,0.24180411]
[1693422730804,8.73868065,1705.0,1704.7,6.10791411]
[1693422731009,8.73868065,1705.0,1704.7,7.56741279]
[1693422731392,2.87348065,1705.0,1704.7,7.56741279]
[1693422731704,2.87348065,1705.0,1704.7,13.43354279]
[1693422733380,5.86449,1705.2,1704.7,13.43354279]
[1693422733569,2.87348065,1705.1,1704.7,13.43354279]
[1693422733771,2.87348065,1705.1,1704.8,1.34335428]
[1693422734067,2.87348065,1705.1,1704.8,7.20904428]
[1693422734292,8.73824065,1705.1,1704.8,7.20904428]
[1693422737464,8.73824065,1705.1,1704.8,5.86569]
[1693422744023,2.87348065,1705.1,1704.8,5.86569]
[1693422744388,2.87348065,1705.1,1704.9,0.23069583]
[1693422744593,2.87348065,1705.1,1704.8,5.86569]
[1693422745839,8.73832065,1705.1,1704.8,5.86569]
[1693422749329,10.38560172,1705.1,1704.7,5.86598]
[1693422749527,17.69344172,1705.1,1704.6,9.40349]
[1693422750093,17.69344172,1705.1,1704.6,5.86639]
[1693422750291,19.29274172,1705.1,1704.6,5.86639]
[1693422750505,1.92927417,1705.0,1704.6,5.86639]
[1693422750734,2.87348065,1704.9,1704.6,5.86639]
[1693422757552,2.87348065,1704.9,1704.5,7.55674]
[1693422757553,14.60445065,1704.9,1704.5,7.55674]
[1693422758274,20.46998065,1704.9,1704.4,9.22222678]
[1693422758434,22.03138065,1704.9,1704.5,1.01969125]
[1693422758634,0.66277617,1704.8,1704.5,1.01969125]
[1693422758862,2.87348065,1704.7,1704.5,1.01969125]
[1693422759167,14.60605065,1704.7,1704.6,0.23155269]
[1693422759737,14.60605065,1704.7,1704.4,0.61096271]
[1693422760067,16.25333172,1704.7,1704.4,0.61096271]
[1693422760226,16.25333172,1704.7,1704.4,1.63068278]
[1693422761358,10.38699172,1704.7,1704.4,1.63068278]
[1693422763176,22.11939172,1704.7,1704.4,1.63068278]
[1693422763348,22.11939172,1704.7,1704.3,1.52740678]
[1693422763549,6.32491845,1705.1,1704.5,5.86682]
[1693422763745,2.87348065,1705.0,1704.6,1.01977482]
[1693422763944,2.87348065,1705.0,1704.7,5.86608]
[1693422764168,2.87348065,1705.0,1704.7,11.73221]
[1693422764882,39.14860284,1705.4,1704.7,11.73221]
[1693422764883,42.01251284,1705.4,1704.8,1.01959372]
[1693422765081,2.87348065,1705.3,1704.9,11.7306]
[1693422765436,2.87348065,1705.3,1704.9,17.59604]
[1693422765655,2.87348065,1705.3,1705.0,7.624494]
[1693422766097,2.87348065,1705.3,1705.0,5.86489]
[1693422768188,8.73757065,1705.3,1705.0,5.86489]
[1693422771570,14.60166065,1705.3,1704.9,5.86527]
[1693422774124,14.60166065,1705.3,1705.0,0.25395572]
[1693422774293,1.46016607,1705.2,1705.0,0.25395572]
[1693422774493,2.87348065,1705.1,1705.0,0.25395572]
[1693422782437,2.87348065,1705.1,1704.8,15.18745]
[1693422788562,2.87348065,1705.1,1704.8,9.32172]
[1693422789154,2.87348065,1705.1,1704.9,0.25417991]
[1693422789560,2.87348065,1705.1,1704.8,9.32172]
[1693422789761,21.83770432,1705.1,1704.5,0.48000187]
[1693422789920,21.83770432,1705.1,1704.5,5.86679]
[1693422789921,1.443,1705.0,1704.5,5.86679]
[1693422790126,14.60458065,1704.9,1704.4,1.9439]
[1693422790528,16.60108065,1704.9,1704.4,1.9439]
[1693422790731,1.40930167,1704.8,1704.4,1.9439]
[1693422790930,10.14884232,1704.8,1704.4,7.81106]
[1693422791936,10.14884232,1704.8,1704.4,13.67822]
[1693422792139,4.28278232,1704.8,1704.4,13.67822]
[1693422792677,10.14860232,1704.8,1704.4,13.67822]
[1693422793441,10.14860232,1704.8,1704.4,7.81106]
[1693422794476,3.88834088,1704.7,1704.4,1.9439]
[1693422794675,3.88834088,1704.7,1704.4,7.81103]
[1693422801006,2.87348065,1704.7,1704.4,7.81103]
[1693422803306,8.73963065,1704.7,1704.4,7.81103]
[1693422804196,8.73963065,1704.7,1704.5,0.24244734]
[1693422816690,2.87348065,1704.7,1704.5,0.24244734]
[1693422817283,5.86549,1704.9,1704.5,6.10919734]
[1693422817490,2.87348065,1704.8,1704.5,8.23220907]
[1693422819376,2.87348065,1704.8,1704.5,8.30153339]
[1693422819813,2.87348065,1704.8,1704.5,6.17852166]
[1693422822818,8.73933065,1704.8,1704.5,6.17852166]
[1693422826806,8.73933065,1704.8,1704.5,0.31177166]
[1693422827034,14.60518065,1704.8,1704.5,0.31177166]
[1693422842157,2.87348065,1704.8,1704.5,0.31177166]
[1693422842455,34.253,1705.3,1704.5,14.3617341]
[1693422842656,2.87348065,1705.2,1704.8,11.73102]
[1693422843154,2.87348065,1705.2,1704.9,0.27199636]
[1693422843355,2.87348065,1705.2,1704.9,6.13738636]
[1693422843560,5.86447,1705.2,1704.8,7.53611]
[1693422843858,5.86447,1705.2,1704.9,0.753611]
[1693422843859,5.86451,1705.2,1704.9,0.753611]
[1693422844533,11.72902,1705.2,1704.9,0.753611]
[1693422849146,5.86451,1705.2,1705.0,0.30921026]
[1693422849668,14.60250065,1705.2,1705.0,0.30921026]
[1693422850067,2.87348065,1705.1,1704.8,1.6706]
[1693422850364,10.19872071,1705.1,1704.8,1.6706]
[1693422850747,16.06371071,1705.1,1704.8,1.6706]
[1693422853068,0.48,1705.0,1704.5,12.34433271]
[1693422853274,2.87348065,1704.9,1704.5,13.63556]
[1693422856982,8.73896065,1704.9,1704.5,7.76874]
[1693422857188,16.11284972,1704.9,1704.5,7.76874]
[1693422857562,4.38188972,1704.9,1704.5,13.63556]
[1693422858193,10.24734972,1704.9,1704.5,13.63556]
[1693422859992,10.24734972,1704.9,1704.5,7.76874]
[1693422860192,16.11280972,1704.9,1704.5,1.9021]
[1693422860394,1.27067228,1704.8,1704.3,2.0135]
[1693422860709,2.87348065,1704.7,1704.4,5.86683]
[1693422861689,14.60576065,1704.7,1704.3,2.0135]
[1693422861986,14.60576065,1704.7,1704.3,7.88093]
[1693422862560,14.60576065,1704.7,1704.3,2.0135]
[1693422862775,1.46025006,1704.6,1704.3,2.0135]
[1693422863055,7.32695006,1704.6,1704.3,2.0135]
[1693422864101,7.32695006,1704.6,1704.4,0.31181313]
[1693422864521,7.32695006,1704.6,1704.3,2.0135]
[1693422867806,7.32695006,1704.6,1704.2,5.8677]
[1693422867807,2.87348065,1704.5,1704.2,5.8677]
[1693422868007,3.89352372,1704.5,1704.2,5.8677]
[1693422868305,2.87348065,1704.5,1704.2,5.8677]
[1693422868506,2.87348065,1704.5,1704.2,11.73555]
[1693422870112,5.86613,1704.7,1704.3,1.0198304]
[1693422870406,8.73961065,1704.7,1704.3,6.8871604]
[1693422870619,8.73961065,1704.7,1704.3,5.86733]
[1693422876717,8.73961065,1704.7,1704.3,7.83301427]
[1693422879136,8.73961065,1704.7,1704.4,0.31240871]
[1693422879502,8.73961065,1704.7,1704.3,15.54514427]
[1693422880061,5.86582,1704.8,1704.3,15.54514427]
[1693422880255,8.73930065,1704.8,1704.3,16.98814427]
[1693422880426,8.73930065,1704.8,1704.4,1.69881443]
[1693422880747,8.73930065,1704.8,1704.4,13.43280443]
[1693422882173,8.73930065,1704.8,1704.4,15.03960443]
[1693422883005,2.87348065,1704.8,1704.4,15.03960443]
[1693422883536,8.73928065,1704.8,1704.4,15.03960443]
[1693422883709,8.73928065,1704.8,1704.5,1.50396044]
[1693422885036,2.87348065,1704.8,1704.5,7.37070044]
[1693422885352,2.87348065,1704.8,1704.5,14.68052044]
[1693422886335,2.87348065,1704.8,1704.5,13.23752044]
[1693422886855,2.87348065,1704.8,1704.5,5.86674]
[1693422888867,8.73929065,1704.8,1704.5,5.86674]
[1693422894187,8.73929065,1704.8,1704.6,0.31183188]
[1693422896300,2.87348065,1704.8,1704.6,0.31183188]
[1693422904825,5.86553,1704.9,1704.6,0.31183188]
[1693422905024,36.14311539,1705.2,1704.6,19.11569807]
[1693422905324,12.19775539,1705.2,1704.6,20.55869807]
[1693422905821,6.33311539,1705.2,1704.6,20.55869807]
[1693422906027,6.33311539,1705.2,1704.7,2.05586981]
[1693422906190,6.33311539,1705.2,1704.8,5.86564]
[1693422907123,12.19752539,1705.2,1704.8,5.86564]
[1693422907320,2.87348065,1705.0,1704.6,0.31183188]
[1693422907528,19.51953,1704.9,1704.6,0.31183188]
[1693422907692,4.82543365,1704.8,1704.6,0.31183188]
[1693422908021,11.73226,1704.7,1704.3,0.61096271]
[1693422908222,14.60574065,1704.7,1704.3,1.01981055]
[1693422908604,16.21364065,1704.7,1704.3,1.01981055]
[1693422908803,22.07977065,1704.7,1704.3,1.01981055]
[1693422909024,22.07977065,1704.7,1704.4,0.29220673]
[1693422909215,24.36714906,1704.7,1704.4,0.29220673]
[1693422909398,24.36714906,1704.7,1704.2,9.35334678]
[1693422909604,22.07977065,1704.7,1704.3,1.0198184]
[1693422909817,22.07977065,1704.7,1704.2,7.82594]
[1693422910019,22.07977065,1704.7,1704.3,1.01981968]
[1693422911437,16.21364065,1704.7,1704.3,1.01981968]
[1693422911937,16.21364065,1704.7,1704.3,1.63171542]
[1693422912236,16.21364065,1704.7,1704.4,1.01981968]
[1693422912442,18.62074071,1704.7,1704.2,15.22351935]
[1693422912647,16.21364065,1704.7,1704.3,1.01981521]
[1693422913145,16.21364065,1704.7,1704.3,1.58171095]
[1693422913453,16.21364065,1704.7,1704.3,7.44918095]
[1693422913645,16.21364065,1704.7,1704.3,6.47936574]
[1693422915823,16.21364065,1704.7,1704.3,8.14356574]
[1693422916022,18.62074071,1704.7,1704.3,8.14356574]
[1693422920262,18.62074071,1704.7,1704.3,2.27609574]
[1693422921154,18.62074071,1704.7,1704.2,9.35550935]
[1693422921359,18.62074071,1704.7,1704.3,0.61189574]
[1693422921743,18.62074071,1704.7,1704.2,9.35550935]
[1693422922257,1.83223135,1704.6,1704.2,8.43766574]
[1693422922568,5.86657,1704.6,1704.2,8.43766574]
[1693422923762,5.86657,1704.6,1704.2,10.07096574]
[1693422923968,5.86657,1704.6,1704.3,0.29345844]
[1693422929877,5.86657,1704.6,1704.3,6.16090844]
[1693422931979,0.0030366,1704.5,1704.3,6.16090844]
[1693422932353,0.0030366,1704.5,1704.3,5.86745]
[1693422936978,5.86657,1704.6,1704.3,5.86745]
[1693422937889,0.00303907,1704.5,1704.3,5.86745]
[1693422938885,5.86657,1704.6,1704.3,5.86745]
[1693422939963,0.00303907,1704.5,1704.3,5.86745]
[1693422940980,5.86657,1704.6,1704.3,5.86745]
[1693422941182,11.73432,1704.4,1704.1,1.0702736]
[1693422941478,11.73432,1704.4,1704.0,0.61189574]
[1693422941648,11.73432,1704.4,1704.0,1.63185742]
[1693422941850,0.00302331,1704.3,1704.0,1.63185742]
[1693422942083,5.87059331,1704.3,1704.0,1.63185742]
[1693422942278,9.91784929,1704.3,1704.0,2.09004218]
[1693422942479,9.91784929,1704.3,1704.1,1.01996168]
[1693422942948,4.05027929,1704.3,1704.1,1.01996168]
[1693422943352,4.05027929,1704.3,1704.1,6.88811168]
[1693422943547,4.05027929,1704.3,1704.1,5.86815]
[1693422947487,0.00302331,1704.3,1704.1,5.86815]
[1693422947887,13.32764,1704.5,1704.1,5.86815]
[1693422948198,16.20112065,1704.5,1704.1,5.86815]
[1693422948968,0.00304248,1704.4,1704.1,5.86815]
[1693422949600,5.87024248,1704.4,1704.1,5.86815]
[1693422949799,7.49067579,1704.4,1704.1,5.86815]
[1693422957721,5.87024248,1704.4,1704.1,5.86815]
[1693422985519,8.74372313,1704.4,1704.2,1.0199744]
[1693422985730,8.74372313,1704.4,1704.1,0.61194312]
[1693422986032,8.74372313,1704.4,1704.1,1.01997648]
[1693422986553,8.74372313,1704.4,1704.1,1.6319196]
[1693422987426,10.95085844,1704.4,1704.1,1.6319196]
[1693422989278,4.31648065,1704.3,1704.0,0.61194312]
[1693422989557,4.31648065,1704.3,1703.8,0.61194312]
[1693422989558,19.04655,1704.2,1703.8,0.61194312]
[1693422989720,11.73708,1704.0,1703.8,0.61194312]
[1693422989922,11.73708,1704.0,1703.8,1.63201628]
[1693422990341,13.7692761,1704.0,1703.8,1.63201628]
[1693422990743,19.6378161,1704.0,1703.7,0.71194312]
[1693422990947,19.6378161,1704.0,1703.8,1.02017772]
[1693422991719,22.51129675,1704.0,1703.7,0.1]
[1693422991919,16.64275675,1704.0,1703.7,0.1]
[1693422992124,1.66427568,1703.9,1703.7,0.1]
[1693422992324,7.53339568,1703.9,1703.7,0.1]
[1693422993348,1.66427568,1703.9,1703.7,0.1]
[1693422994978,10.40665633,1703.9,1703.7,0.1]
[1693423000381,5.8689,1703.9,1703.7,0.1]
[1693423000678,5.86854,1704.0,1703.7,5.96954]
[1693423000975,8.74202065,1704.0,1703.7,5.96954]
[1693423001170,13.32359,1704.1,1703.7,5.96954]
[1693423001171,5.86822,1704.1,1703.7,5.96954]
[1693423001372,5.86736,1704.4,1703.9,1.443]
[1693423001577,8.74083065,1704.4,1703.9,1.443]
[1693423001746,8.32916314,1704.5,1704.0,13.17974]
[1693423001747,12.21366314,1704.5,1704.0,13.17974]
[1693423001947,0.00343463,1704.3,1704.1,1.317974]
[1693423002155,0.00343463,1704.3,1704.2,5.86785]
[1693423002559,0.00343463,1704.3,1704.1,13.054154]
[1693423003086,5.86652,1704.6,1704.1,18.922354]
[1693423003876,0.00345472,1704.5,1704.1,18.922354]
[1693423004076,0.00345472,1704.5,1704.2,7.7598154]
[1693423008396,5.87033472,1704.5,1704.2,7.7598154]
[1693423010164,5.87033472,1704.5,1704.0,3.0555]
[1693423010165,14.61069537,1704.5,1704.0,13.34952]
[1693423010376,14.61069537,1704.5,1704.1,5.86809]
[1693423018222,14.61069537,1704.5,1704.1,11.73629]
[1693423031463,14.61069537,1704.5,1704.1,5.86809]
[1693423031758,11.73536,1704.3,1703.9,1.9003]
[1693423031964,1.173536,1704.2,1703.9,1.9003]
[1693423032261,1.173536,1704.2,1703.9,7.76913]
[1693423032981,0.00342468,1704.1,1703.9,7.76913]
[1693423033986,5.8679,1704.2,1703.9,7.76913]
[1693423034951,0.00342468,1704.1,1703.9,7.76913]
[1693423035481,0.00342468,1704.1,1703.9,1.9003]
[1693423035981,11.73593,1704.2,1703.9,1.9003]
[1693423036206,7.91560907,1704.2,1703.9,1.9003]
[1693423036876,16.65716972,1704.2,1703.7,7.16847957]
[1693423037080,0.00342468,1704.1,1703.8,1.02008885]
[1693423037261,11.74030468,1704.1,1703.8,1.02008885]
[1693423038785,11.74006468,1704.1,1703.7,5.96942]
[1693423038949,13.40278944,1704.1,1703.8,1.02011534]
[1693423039151,7.53434944,1704.1,1703.8,6.88930534]
[1693423039359,13.40254944,1704.1,1703.7,6.58071957]
[1693423039556,13.40254944,1704.1,1703.8,1.0201211]
[1693423039761,1.34025494,1704.0,1703.7,11.83876]
[1693423039991,13.40597412,1704.1,1703.7,5.96934]
[1693423040198,15.23847412,1704.1,1703.8,1.0201338]
[1693423040798,15.23847412,1704.1,1703.7,5.96934]
[1693423041000,15.23847412,1704.1,1703.8,1.0201335]
[1693423041999,9.37027412,1704.1,1703.8,1.0201335]
[1693423042163,9.37027412,1704.1,1703.7,12.44992957]
[1693423042164,9.37027412,1704.1,1703.7,12.4509316]
[1693423042367,15.23847412,1704.1,1703.8,1.02013549]
[1693423050726,13.57232468,1704.1,1703.8,1.02013549]
[1693423051527,13.57232468,1704.1,1703.8,6.88934549]
[1693423051729,13.57232468,1704.1,1703.8,5.86921]
[1693423059341,13.57232468,1704.1,1703.7,12.4509516]
[1693423059512,13.57232468,1704.1,1703.8,1.02010865]
[1693423070577,11.73982468,1704.1,1703.8,2.45905992]
[1693423070783,11.73982468,1704.1,1704.0,1.443]
[1693423070784,0.00342468,1704.1,1704.0,1.443]
[1693423070968,0.00342468,1704.1,1704.0,20.06872865]
[1693423071278,0.00342468,1704.1,1704.0,21.94082865]
[1693423071485,0.00342468,1704.1,1704.0,24.19614168]
[1693423071981,5.86686,1704.5,1704.0,24.19614168]
[1693423072278,7.50922,1704.6,1704.0,23.17603303]
[1693423072441,10.84360561,1704.6,1704.1,1.01998838]
[1693423072644,10.84360561,1704.6,1704.2,11.73551]
[1693423073043,0.00317076,1704.5,1704.2,11.73551]
[1693423073246,0.00317076,1704.5,1704.2,13.495878]
[1693423073447,0.00317076,1704.5,1704.2,15.030178]
[1693423074851,0.00317076,1704.5,1704.2,9.162348]
[1693423075483,5.87001076,1704.5,1704.2,9.162348]
[1693423076504,0.00317076,1704.5,1704.2,22.341048]
[1693423076658,0.00317076,1704.5,1704.3,3.6771048]
[1693423076862,0.00317076,1704.5,1704.4,11.73432]
[1693423077175,11.73202,1704.8,1704.4,5.86716]
[1693423077370,14.60550065,1704.8,1704.4,5.86716]
[1693423077969,0.00319722,1704.7,1704.4,5.86716]
[1693423078309,0.00319722,1704.7,1704.4,7.99504548]
[1693423078880,0.00319722,1704.7,1704.4,9.54204548]
[1693423079655,5.86933722,1704.7,1704.4,9.54204548]
[1693423080502,0.00319722,1704.7,1704.4,21.27636548]
[1693423083259,0.00319722,1704.7,1704.4,13.86220548]
[1693423088095,2.87667787,1704.7,1704.4,13.86220548]
[1693423088297,2.87667787,1704.7,1704.4,11.73432]
[1693423089401,8.74281787,1704.7,1704.4,5.86716]
[1693423089599,2.87667787,1704.7,1704.3,5.86744]
[1693423089899,2.87348065,1704.6,1704.3,5.86735]
[1693423090280,4.33439044,1704.6,1704.3,5.86735]
[1693423090487,10.20088044,1704.6,1704.3,5.86735]
[1693423090697,4.33439044,1704.6,1704.3,5.86735]
[1693423091214,0.00318149,1704.5,1704.3,5.86735]
[1693423091425,2.87666214,1704.5,1704.3,5.86735]
[1693423091568,2.87666214,1704.5,1704.3,11.73486]
[1693423092519,2.87666214,1704.5,1704.3,5.86735]
[1693423092907,3.31041933,1704.5,1704.3,5.86735]
[1693423096123,3.31041933,1704.5,1704.3,11.73486]
[1693423096306,3.31041933,1704.5,1704.3,5.86735]
[1693423096508,3.31041933,1704.5,1704.3,11.73486]
[1693423096707,3.31041933,1704.5,1704.3,5.86735]
[1693423096892,3.31041933,1704.5,1704.3,11.73486]
[1693423097207,3.31041933,1704.5,1704.3,5.86735]
[1693423097412,3.31041933,1704.5,1704.3,11.73486]
[1693423097569,3.31041933,1704.5,1704.3,5.86735]
[1693423097770,2.87666214,1704.5,1704.3,5.86735]
[1693423099109,2.87666214,1704.5,1704.2,11.73522]
[1693423123057,2.87348065,1704.5,1704.2,11.73522]
[1693423126356,7.80356,1704.6,1704.2,11.73522]
[1693423126658,5.86613,1704.7,1704.3,1.173522]
[1693423126820,8.73961065,1704.7,1704.4,5.86709]
[1693423158182,14.60587065,1704.7,1704.4,5.86709]
[1693423159794,14.60587065,1704.7,1704.3,5.8673]
[1693423159999,1.46058707,1704.6,1704.3,5.8673]
[1693423160165,7.32712707,1704.6,1704.3,5.8673]
[1693423166193,5.86654,1704.6,1704.3,5.8673]
[1693423174600,5.86654,1704.6,1704.0,2.14250538]
[1693423174601,4.79648065,1704.5,1704.0,2.14250538]
[1693423174805,13.17766,1704.4,1704.0,5.86839]
[1693423175002,4.67124665,1704.3,1703.9,13.8989216]
[1693423175201,10.53883665,1704.3,1704.0,1.02008977]
[1693423175403,16.40654665,1704.3,1704.0,6.88856977]
[1693423175603,16.40642665,1704.3,1704.0,5.86848]
[1693423175795,1.64064267,1704.2,1704.0,5.86848]
[1693423175991,2.87348065,1704.1,1704.0,5.86848]
[1693423176205,2.87348065,1704.1,1704.0,6.88856863]
[1693423176687,2.87348065,1704.1,1704.0,5.86848]
[1693423177087,2.87348065,1704.1,1703.9,13.28662]
[1693423177288,2.87348065,1704.1,1703.9,11.73742]
[1693423177819,2.87348065,1704.1,1703.9,5.86868]
[1693423179131,2.87348065,1704.1,1703.9,11.73756]
[1693423184842,8.74171065,1704.1,1703.8,1.6773]
[1693423185007,14.60994065,1704.1,1703.8,1.6773]
[1693423185943,8.74171065,1704.1,1703.8,7.5465]
[1693423187653,8.74171065,1704.1,1703.8,8.90635165]
[1693423190466,8.22293533,1704.3,1703.8,8.90635165]
[1693423190661,3.17328367,1704.5,1704.0,1.443]
[1693423190662,8.86689,1704.5,1704.0,1.443]
[1693423190827,2.87348065,1704.4,1704.1,5.86802]
[1693423191153,0.46957359,1704.5,1704.1,13.17922]
[1693423191353,2.87348065,1704.5,1704.1,20.95217]
[1693423192162,2.87348065,1704.5,1704.1,15.08397]
[1693423193227,2.36688647,1704.6,1704.2,1.443]
[1693423193429,5.86619,1704.7,1704.4,5.86713]
[1693423193640,9.91288765,1704.7,1704.4,5.86713]
[1693423194172,8.73967065,1704.7,1704.4,5.86713]
[1693423194382,2.87348065,1704.7,1704.4,5.86713]
[1693423194784,2.87348065,1704.7,1704.4,11.73429]
[1693423195075,5.86596,1704.8,1704.4,11.73429]
[1693423195280,14.60544065,1704.8,1704.4,11.73429]
[1693423195442,14.60544065,1704.8,1704.4,14.00074]
[1693423196356,14.60544065,1704.8,1704.4,8.13358]
[1693423198585,8.73944065,1704.8,1704.4,8.13358]
[1693423200544,14.60544065,1704.8,1704.4,8.13358]
[1693423202310,2.87348065,1704.7,1704.3,15.35456]
[1693423202475,14.60624065,1704.7,1704.3,11.73466]
[1693423204210,14.60624065,1704.7,1704.3,5.86731]
[1693423205114,14.60624065,1704.7,1704.3,11.73482]
[1693423206916,8.73986065,1704.7,1704.3,11.73482]
[1693423207094,2.87348065,1704.7,1704.3,13.495068]
[1693423210926,8.73968065,1704.7,1704.3,13.495068]
[1693423211120,8.73968065,1704.7,1704.3,11.73482]
[1693423215537,14.60588065,1704.7,1704.3,11.73482]
[1693423216637,16.04888065,1704.7,1704.2,11.73536]
[1693423216828,23.83578065,1704.7,1704.2,5.86766]
[1693423217007,2.38357807,1704.6,1704.2,5.86766]
[1693423217210,16.99032872,1704.6,1704.2,5.86766]
[1693423219242,11.12354872,1704.6,1704.2,5.86766]
[1693423220104,12.74154872,1704.6,1704.2,5.86766]
[1693423229328,12.74154872,1704.6,1704.2,11.73551]
[1693423229715,12.74154872,1704.6,1704.2,5.86766]
[1693423230817,18.60801872,1704.6,1704.2,5.86766]
[1693423231035,12.74152872,1704.6,1704.2,5.86766]
[1693423231617,18.60799872,1704.6,1704.2,5.86766]
[1693423231844,7.72257334,1704.5,1704.2,5.86766]
[1693423232148,7.72566357,1704.5,1704.2,5.86766]
[1693423234118,7.72566357,1704.5,1704.1,15.39394]
[1693423235616,7.72566357,1704.5,1704.2,1.01994973]
[1693423236224,5.86991023,1704.5,1704.2,1.01994973]
[1693423236550,5.86991023,1704.5,1704.2,6.88779973]
[1693423236740,5.86991023,1704.5,1704.2,5.86785]
[1693423239645,5.81991023,1704.5,1704.2,5.86785]
[1693423240175,0.00309023,1704.5,1704.2,5.86785]
[1693423240374,0.00309023,1704.5,1704.3,0.586785]
[1693423241576,0.00309023,1704.5,1704.3,6.454265]
[1693423246774,0.00309023,1704.5,1704.3,5.86748]
[1693423250282,0.00309023,1704.5,1704.2,5.86768]
[1693423250781,0.00309023,1704.5,1704.3,1.01991899]
[1693423252688,5.87000023,1704.5,1704.3,1.01991899]
[1693423252882,5.87000023,1704.5,1704.1,16.924694]
[1693423253085,5.87000023,1704.5,1704.2,1.01992202]
[1693423253769,11.73691023,1704.5,1704.2,1.01992202]
[1693423257193,5.87000023,1704.5,1704.2,1.01992202]
[1693423261592,2.87348065,1704.4,1704.2,1.01992202]
[1693423261808,14.60800065,1704.4,1704.2,1.01992202]
[1693423262012,0.00307416,1704.3,1704.2,1.01992202]
[1693423263105,5.86751,1704.3,1704.2,1.01992202]
[1693423263485,5.86751,1704.3,1704.0,8.935264]
[1693423263695,5.86751,1704.3,1704.1,1.01999259]
[1693423264091,0.00306445,1704.2,1704.1,1.01999259]
[1693423264318,0.00306445,1704.2,1703.9,0.6123016]
[1693423264319,14.6122451,1704.2,1703.9,0.6123016]
[1693423264502,8.7443951,1704.2,1703.9,1.63235718]
[1693423266085,2.8765451,1704.2,1703.9,7.50115718]
[1693423266291,2.8765451,1704.2,1704.0,1.02005558]
[1693423266496,4.82958312,1704.2,1704.0,1.02005558]
[1693423266895,10.69745312,1704.2,1704.0,1.02005558]
[1693423267295,10.69745312,1704.2,1703.9,0.6123016]
[1693423267609,16.56532312,1704.2,1703.9,1.63236032]
[1693423269739,16.56532312,1704.2,1703.8,4.1362016]
[1693423269892,16.56532312,1704.2,1703.9,1.02008493]
[1693423276019,16.56532312,1704.2,1703.8,9.39298]
[1693423278647,16.56532312,1704.2,1703.8,3.5239]
[1693423279655,16.56532312,1704.2,1703.7,0.1]
[1693423279656,5.14194898,1704.1,1703.7,0.1]
[1693423279818,17.60583,1704.0,1703.7,0.1]
[1693423280009,20.48237144,1704.0,1703.7,0.1]
[1693423282643,11.73846,1703.8,1703.7,0.1]
[1693423283016,11.7414967,1703.8,1703.7,0.1]
[1693423283542,5.8722667,1703.8,1703.7,0.1]
[1693423287853,11.7414967,1703.8,1703.7,0.1]
[1693423288071,16.07580241,1703.8,1703.7,0.1]
[1693423292937,10.20657241,1703.8,1703.7,0.1]
[1693423301513,8.74574735,1703.8,1703.7,0.1]
[1693423301805,8.74574735,1703.8,1703.7,1.12027278]
[1693423302305,8.74574735,1703.8,1703.7,0.1]
[1693423302896,8.74574735,1703.8,1703.7,1.12027664]
[1693423303103,8.74574735,1703.8,1703.7,0.1]
[1693423304313,8.74574735,1703.8,1703.7,1.12029608]
[1693423307124,0.0030367,1703.8,1703.7,1.12029608]
[1693423308100,0.0030367,1703.8,1703.7,1.97238909]
[1693423308304,0.0030367,1703.8,1703.7,8.45426069]
[1693423308507,1e-08,1703.8,1703.7,8.45426069]
[1693423309023,11.73672,1704.1,1703.7,8.45426069]
[1693423309224,11.73672,1704.1,1703.8,1.02029608]
[1693423309389,5.8683,1704.1,1703.8,1.02029608]
[1693423309817,37.6286,1704.4,1703.8,1.02029608]
[1693423310126,5.87348065,1704.3,1703.8,3.07559768]
[1693423310324,17.60887065,1704.3,1703.9,1.32785585]
[1693423310534,26.47659065,1704.3,1703.9,0.30755977]
[1693423311496,26.47659065,1704.3,1703.9,1.92485977]
[1693423311831,23.47659065,1704.3,1703.9,1.92485977]
[1693423312020,26.47659065,1704.3,1703.9,1.92485977]
[1693423315056,23.47659065,1704.3,1703.9,1.92485977]
[1693423315245,26.47659065,1704.3,1703.9,1.92485977]
[1693423321980,23.47659065,1704.3,1703.9,0.30755977]
[1693423322185,2.34765906,1704.2,1703.8,1.922]
[1693423322386,11.73652,1704.1,1703.8,1.922]
[1693423325153,11.73652,1704.1,1703.7,0.1]
[1693423325154,2.87348065,1704.0,1703.7,0.1]
[1693423325375,14.61088065,1704.0,1703.7,1.73246115]
[1693423325564,14.61088065,1704.0,1703.8,1.02015955]
[1693423326170,21.92272065,1704.0,1703.7,0.1]
[1693423326490,2.19227207,1703.9,1703.7,0.1]
[1693423326657,11.73846,1703.8,1703.7,0.1]
[1693423328281,14.61194065,1703.8,1703.7,0.1]
[1693423328983,8.74271065,1703.8,1703.7,0.1]
[1693423329767,2.87348065,1703.8,1703.7,0.1]
[1693423329960,4.55386892,1703.8,1703.7,0.1]
[1693423330187,10.42309892,1703.8,1703.7,0.1]
[1693423332102,16.29232892,1703.8,1703.7,0.1]
[1693423332899,10.42309892,1703.8,1703.7,0.1]
[1693423333281,24.08455892,1703.8,1703.7,0.1]
[1693423333972,24.31958992,1703.8,1703.7,0.1]
[1693423334168,23.83958992,1703.8,1703.7,0.1]
[1693423337209,22.39658992,1703.8,1703.7,0.1]
[1693423338573,23.83958992,1703.8,1703.7,0.1]
[1693423338779,24.31958992,1703.8,1703.7,0.1]
[1693423339415,27.31958992,1703.8,1703.7,0.1]
[1693423342736,27.31958992,1703.8,1703.2,3.0963]
[1693423342903,6.87542379,1703.7,1703.2,3.0963]
[1693423343102,17.61027,1703.6,1703.2,3.0963]
[1693423343302,2.87348065,1703.5,1703.2,3.0963]
[1693423343533,14.61435065,1703.5,1703.2,3.0963]
[1693423347239,14.61435065,1703.5,1703.2,8.96754]